bitfinex-derivatives/quotes_ETHF0:USTF0_20230106
["timestamp","ask_amount","ask_price","bid_price","bid_amount"]
[1673004970697,2.99085717,1242.6,1242.5,5.01811018]
[1673004971532,2.99085717,1242.6,1242.5,1.81031018]
[1673004971852,2.99085717,1242.6,1242.5,5.01811018]
[1673004973959,2.99085717,1242.6,1242.5,7.42721915]
[1673004974171,2.99085717,1242.6,1242.5,5.01811018]
[1673004974904,2.99085717,1242.6,1242.5,1.81031018]
[1673004977535,2.98692521,1242.6,1242.5,1.81031018]
[1673004978053,7.73519671,1242.7,1242.4,10.01811018]
[1673004979007,7.73519671,1242.7,1242.4,5.01811018]
[1673004979420,3.56353093,1242.7,1242.4,5.01811018]
[1673004980364,2.39393062,1242.5,1242.4,7.42721915]
[1673004982264,2.39393062,1242.5,1242.4,5.61690897]
[1673004982788,2.39393062,1242.5,1242.4,7.426534]
[1673004983102,2.39393062,1242.5,1242.4,5.01742503]
[1673004984998,3.56353093,1242.7,1242.4,5.01742503]
[1673004985206,2.39334403,1242.5,1242.4,5.01742503]
[1673004985829,3.56353093,1242.7,1242.4,5.01742503]
[1673004986040,7.73519671,1242.7,1242.4,5.01742503]
[1673004986469,3.2078,1242.6,1242.3,1.80962503]
[1673004986672,2.39281442,1242.4,1242.3,1.80962503]
[1673004987613,4.186852,1242.4,1242.3,1.80962503]
[1673004988040,1.79403758,1242.4,1242.3,2.40910897]
[1673004988979,1.79403758,1242.4,1242.3,3.83588027]
[1673004989193,2.99011775,1242.4,1242.3,3.83588027]
[1673004989399,2.99014942,1242.4,1242.3,3.83586888]
[1673004989822,1.79403758,1242.4,1242.3,2.40910897]
[1673004990566,1.79403758,1242.4,1242.3,3.83589228]
[1673004990978,1.79403758,1242.4,1242.3,2.40910897]
[1673004991188,1.79403758,1242.4,1242.3,3.83588782]
[1673004991508,1.79403758,1242.4,1242.3,4.2176366]
[1673004991719,4.186852,1242.4,1242.3,1.80852763]
[1673004991930,4.186852,1242.4,1242.3,4.2176366]
[1673004992138,4.186852,1242.4,1242.3,1.80852763]
[1673004992139,2.39281442,1242.4,1242.3,1.80852763]
[1673004994866,2.39281442,1242.4,1242.2,32.03787433]
[1673004995073,1.79365735,1242.3,1242.2,32.03787433]
[1673004995497,4.18647177,1242.3,1242.2,32.03787433]
[1673004997183,4.18647177,1242.3,1242.2,28.83007433]
[1673004997388,1.79365735,1242.3,1242.2,28.83007433]
[1673004998227,2.98882537,1242.3,1242.2,28.83007433]
[1673004998437,2.98882537,1242.3,1242.2,31.2391833]
[1673004998860,2.98882537,1242.3,1242.2,29.43065567]
[1673004999182,1.19516802,1242.3,1242.2,29.43065567]
[1673004999711,1.19516802,1242.3,1242.2,32.63845567]
[1673004999919,1.19516802,1242.3,1242.2,34.06530442]
[1673005000129,1.19516802,1242.3,1242.2,42.10230442]
[1673005000444,2.98882537,1242.4,1242.2,45.11369137]
[1673005000655,2.98882537,1242.4,1242.3,1.80737604]
[1673005001077,1.79365735,1242.4,1242.3,1.80737604]
[1673005004861,2.98808965,1242.4,1242.2,27.0215467]
[1673005005073,5.37784523,1242.3,1242.2,27.0215467]
[1673005005279,2.38975558,1242.3,1242.2,27.0215467]
[1673005008854,4.18151754,1242.3,1242.2,30.2293467]
[1673005009058,1.79176196,1242.3,1242.2,32.03672274]
[1673005009797,4.18151754,1242.3,1242.2,30.2293467]
[1673005010004,2.38975558,1242.3,1242.2,30.2293467]
[1673005010850,1.79197918,1242.3,1242.2,32.03672274]
[1673005015779,2.98706612,1242.3,1242.2,40.67545567]
[1673005015997,1.19508694,1242.3,1242.2,50.11366033]
[1673005019050,1.19508694,1242.3,1242.2,47.10227338]
[1673005019682,1.19508694,1242.3,1242.2,50.11366033]
[1673005020308,1.19508694,1242.3,1242.2,47.10227338]
[1673005021684,1.19508694,1242.3,1242.2,50.11366033]
[1673005022943,1.19508694,1242.3,1242.2,47.10227338]
[1673005023152,2.98706612,1242.3,1242.2,47.10227338]
[1673005025148,1.79197918,1242.3,1242.2,45.67545567]
[1673005025558,1.79197918,1242.3,1242.2,47.10235041]
[1673005025884,2.98765962,1242.3,1242.2,47.10235041]
[1673005026304,1.79197918,1242.3,1242.2,47.10235041]
[1673005026935,4.18173476,1242.3,1242.2,39.44721181]
[1673005027141,2.38975558,1242.3,1242.2,37.03810284]
[1673005029352,2.38975558,1242.3,1242.2,45.07510284]
[1673005029987,5.3794712,1242.3,1242.2,35.2293467]
[1673005030198,5.3794712,1242.3,1242.2,30.2293467]
[1673005030199,2.98808965,1242.3,1242.2,30.2293467]
[1673005030413,5.37942338,1242.3,1242.2,30.2293467]
[1673005030622,5.37942431,1242.3,1242.2,30.2293467]
[1673005030933,2.39133466,1242.3,1242.2,32.03810284]
[1673005031776,2.39133466,1242.3,1242.2,42.48421181]
[1673005032096,4.18518935,1242.3,1242.2,42.48421181]
[1673005032416,4.18519558,1242.3,1242.2,42.48421181]
[1673005032617,4.18519558,1242.3,1242.2,42.48455381]
[1673005032833,2.39133466,1242.3,1242.2,42.48455381]
[1673005033138,2.39133466,1242.3,1242.2,40.07544484]
[1673005033349,4.18518991,1242.3,1242.2,42.48455381]
[1673005033559,2.39133466,1242.3,1242.2,42.48455381]
[1673005033987,4.18529968,1242.3,1242.2,42.48455381]
[1673005034301,4.18540229,1242.3,1242.2,40.67545567]
[1673005034506,1.79406763,1242.3,1242.2,40.67545567]
[1673005035247,1.79406763,1242.3,1242.2,42.10236448]
[1673005035773,4.18540229,1242.3,1242.2,40.67545567]
[1673005036084,4.18540229,1242.3,1242.2,42.48458501]
[1673005036405,4.18540229,1242.3,1242.2,40.67545567]
[1673005036603,4.18540229,1242.3,1242.2,37.46765567]
[1673005036819,4.18540229,1242.3,1242.2,40.67545567]
[1673005037455,1.79406763,1242.3,1242.2,42.10235941]
[1673005038605,1.79406763,1242.3,1242.2,42.10236758]
[1673005038923,4.18540229,1242.3,1242.2,40.67545567]
[1673005040403,1.79406763,1242.3,1242.2,42.10236272]
[1673005041668,1.79406763,1242.3,1242.2,47.10236272]
[1673005045134,4.18540229,1242.3,1242.2,47.10236272]
[1673005045556,1.79406763,1242.3,1242.2,47.10236272]
[1673005045766,4.18540229,1242.3,1242.2,47.10236272]
[1673005046077,1.79406763,1242.3,1242.2,50.11374967]
[1673005047757,4.18540229,1242.3,1242.2,47.10236272]
[1673005047961,1.79406763,1242.3,1242.2,47.10236272]
[1673005048918,4.18540229,1242.3,1242.2,47.10236272]
[1673005049443,1.79406763,1242.3,1242.2,50.11374967]
[1673005050909,4.18540229,1242.3,1242.2,50.11374967]
[1673005051654,4.18540229,1242.3,1242.2,46.90594967]
[1673005051867,4.18540229,1242.3,1242.2,50.11374967]
[1673005052385,4.18540229,1242.3,1242.2,47.10236272]
[1673005052386,4.17742689,1242.3,1242.2,47.10236272]
[1673005053023,2.39133466,1242.3,1242.2,47.10240717]
[1673005053333,5.37942431,1242.4,1242.2,50.11379412]
[1673005053534,2.39133466,1242.4,1242.3,12.25618689]
[1673005053747,2.39133466,1242.4,1242.3,10.44610897]
[1673005054168,2.39133466,1242.4,1242.3,11.87293106]
[1673005058796,2.39133466,1242.4,1242.3,10.44610897]
[1673005059006,2.39133466,1242.4,1242.3,12.25598403]
[1673005059211,2.39133466,1242.4,1242.3,12.25602356]
[1673005061532,5.37942431,1242.4,1242.3,12.25602356]
[1673005061944,5.37942431,1242.4,1242.3,9.84691459]
[1673005064061,2.39133466,1242.4,1242.3,10.44610897]
[1673005066798,2.39133466,1242.4,1242.3,13.65390897]
[1673005067422,2.39133466,1242.4,1242.3,15.08073597]
[1673005068998,2.39133466,1242.4,1242.3,18.09212292]
[1673005069207,5.37942431,1242.5,1242.3,18.09212292]
[1673005069409,5.37942431,1242.5,1242.4,9.84691387]
[1673005069837,2.98808965,1242.5,1242.4,9.84691387]
[1673005070047,5.38191128,1242.5,1242.4,1.80991387]
[1673005070260,2.98808965,1242.5,1242.4,1.80991387]
[1673005072888,2.98808965,1242.5,1242.4,5.01771387]
[1673005074990,2.98808965,1242.5,1242.4,1.80991387]
[1673005075206,2.98808965,1242.5,1242.4,5.01771387]
[1673005077944,2.98808965,1242.5,1242.4,6.22448297]
[1673005080870,2.98808965,1242.5,1242.4,3.01668297]
[1673005081083,2.98808965,1242.5,1242.4,5.01771387]
[1673005086985,2.98808965,1242.5,1242.4,6.22470505]
[1673005087725,3.56353093,1242.6,1242.4,6.22470505]
[1673005088035,2.99403725,1242.5,1242.4,6.22470505]
[1673005089191,2.99403725,1242.5,1242.4,5.01771387]
[1673005090869,3.56353093,1242.6,1242.4,6.22479563]
[1673005091081,2.99418058,1242.5,1242.4,6.22479563]
[1673005091289,3.56353093,1242.6,1242.4,6.22479563]
[1673005092027,3.56353093,1242.6,1242.4,3.01699563]
[1673005093604,10.94299671,1242.6,1242.4,1.20708176]
[1673005093816,6.77133093,1242.6,1242.4,3.01699563]
[1673005094240,6.77133093,1242.6,1242.4,1.20708176]
[1673005094552,3.56353093,1242.5,1242.3,6.22479563]
[1673005094761,3.56353093,1242.5,1242.3,1.20708176]
[1673005095178,7.73519671,1242.5,1242.3,1.20708176]
[1673005095502,3.56353093,1242.5,1242.3,1.20708176]
[1673005097600,7.73519671,1242.5,1242.3,1.20708176]
[1673005097802,7.73519671,1242.5,1242.2,30.03854233]
[1673005098015,2.99203843,1242.3,1242.2,30.03854233]
[1673005099066,2.99203843,1242.3,1242.2,33.24634233]
[1673005099802,2.99203843,1242.3,1242.2,31.43642846]
[1673005100013,2.99203843,1242.3,1242.2,33.24634233]
[1673005100224,5.38499064,1242.3,1242.2,33.24634233]
[1673005100425,2.39295221,1242.3,1242.2,33.24634233]
[1673005100641,5.38499064,1242.3,1242.2,33.24634233]
[1673005100851,2.39295221,1242.3,1242.2,33.24634233]
[1673005101272,5.38499064,1242.3,1242.2,33.24634233]
[1673005101477,2.39295221,1242.3,1242.2,33.24634233]
[1673005102844,2.39295221,1242.3,1242.2,33.24512798]
[1673005103061,2.39295221,1242.3,1242.2,33.24513365]
[1673005103376,2.39295221,1242.3,1242.2,30.03733365]
[1673005103695,2.39295221,1242.3,1242.2,33.24513365]
[1673005108514,2.39295221,1242.3,1242.2,32.03926057]
[1673005109148,2.39295221,1242.3,1242.2,33.24482437]
[1673005109579,2.39295221,1242.3,1242.2,32.03926057]
[1673005109791,5.38499064,1242.4,1242.2,34.44836954]
[1673005110102,5.38499064,1242.4,1242.3,1.20563026]
[1673005110309,2.39295221,1242.4,1242.3,1.20563026]
[1673005110631,2.39295221,1242.4,1242.3,3.01554413]
[1673005111359,2.99203843,1242.4,1242.3,1.20563026]
[1673005111578,5.38464409,1242.4,1242.3,1.20563026]
[1673005112199,5.38477449,1242.4,1242.3,1.20563026]
[1673005112520,2.99203843,1242.4,1242.3,1.20563026]
[1673005113141,5.38476406,1242.4,1242.3,1.20563026]
[1673005113360,2.99203843,1242.4,1242.3,1.20563026]
[1673005113884,5.38480272,1242.4,1242.3,3.01554413]
[1673005114723,2.99203843,1242.4,1242.3,1.20563026]
[1673005115254,5.38530845,1242.4,1242.3,1.20563026]
[1673005115666,2.99203843,1242.4,1242.3,1.20563026]
[1673005117775,2.99203843,1242.4,1242.3,4.41343026]
[1673005119354,2.99203843,1242.4,1242.3,3.2078]
[1673005119667,3.2078,1242.4,1242.2,27.0215467]
[1673005119982,2.99044813,1242.3,1242.2,27.0215467]
[1673005120398,2.99044813,1242.3,1242.2,27.01771452]
[1673005125447,6.77133093,1242.4,1242.2,27.01771452]
[1673005127444,3.56353093,1242.4,1242.2,27.01771452]
[1673005127656,6.77133093,1242.4,1242.2,27.01771452]
[1673005127857,2.99014158,1242.3,1242.2,27.01771452]
[1673005128706,6.77133093,1242.4,1242.2,27.01771452]
[1673005129119,2.99025993,1242.3,1242.2,27.01771452]
[1673005129653,6.77133093,1242.4,1242.2,27.01771452]
[1673005129849,9.77133093,1242.4,1242.2,27.01771452]
[1673005130067,3.56353093,1242.3,1242.2,27.01771452]
[1673005130593,7.73519671,1242.3,1242.2,27.01771452]
[1673005131436,4.17166578,1242.3,1242.2,27.01771452]
[1673005131745,7.37946578,1242.3,1242.2,27.01771452]
[1673005131959,10.96690508,1242.3,1242.2,27.01771452]
[1673005132169,6.7952393,1242.3,1242.2,27.01771452]
[1673005132906,3.2078,1242.3,1242.2,27.01771452]
[1673005138587,2.99257064,1242.3,1242.2,27.01771452]
[1673005141831,2.99257064,1242.3,1242.2,30.22551452]
[1673005142042,5.39027927,1242.3,1242.2,30.22551452]
[1673005142368,2.99257064,1242.3,1242.2,30.22551452]
[1673005143311,2.99257064,1242.3,1242.2,27.01771452]
[1673005145439,2.99470946,1242.3,1242.2,27.01771452]
[1673005145739,2.99445982,1242.3,1242.2,27.01771452]
[1673005146792,2.99366477,1242.3,1242.2,27.01771452]
[1673005148474,3.5874393,1242.4,1242.2,27.01771452]
[1673005148998,2.99410197,1242.3,1242.2,27.01771452]
[1673005149409,3.5874393,1242.4,1242.2,27.01771452]
[1673005153404,2.99467764,1242.3,1242.2,27.01771452]
[1673005155512,3.5874393,1242.4,1242.2,27.01771452]
[1673005157513,2.99560861,1242.3,1242.2,27.01771452]
[1673005157723,2.99555082,1242.3,1242.2,27.01771452]
[1673005157929,3.5874393,1242.4,1242.2,28.22334478]
[1673005158250,7.75910508,1242.4,1242.2,27.01771452]
[1673005160563,3.5874393,1242.4,1242.2,27.01771452]
[1673005160773,3.5874393,1242.4,1242.2,28.22334478]
[1673005161710,3.5874393,1242.4,1242.2,31.43114478]
[1673005161926,2.99655583,1242.3,1242.2,31.43114478]
[1673005162138,3.5874393,1242.4,1242.2,27.01771452]
[1673005163294,7.75910508,1242.4,1242.2,27.01771452]
[1673005163504,3.5874393,1242.4,1242.2,27.01771452]
[1673005163822,3.5874393,1242.4,1242.2,28.22334478]
[1673005164344,3.5874393,1242.4,1242.2,27.01771452]
[1673005164554,2.9978553,1242.3,1242.2,31.43114478]
[1673005164759,5.3966991,1242.3,1242.2,32.03542839]
[1673005164969,5.3966991,1242.3,1242.2,40.07242839]
[1673005164970,2.3988438,1242.3,1242.2,40.07242839]
[1673005165816,2.3988438,1242.3,1242.2,42.48153736]
[1673005166227,2.3988438,1242.3,1242.2,40.07242839]
[1673005169609,5.3966991,1242.3,1242.2,31.43119902]
[1673005169813,2.9978553,1242.3,1242.2,31.43119902]
[1673005171288,2.9978553,1242.3,1242.2,39.46819902]
[1673005172646,2.9978553,1242.3,1242.2,31.43119902]
[1673005175280,2.9916713,1242.3,1242.2,31.43119902]
[1673005175487,2.9916713,1242.3,1242.2,28.22339902]
[1673005179167,2.9916713,1242.3,1242.2,30.03331289]
[1673005180001,2.9916713,1242.3,1242.2,38.07031289]
[1673005180321,2.39776382,1242.3,1242.2,36.86462839]
[1673005183053,2.39776382,1242.3,1242.2,38.07071597]
[1673005183256,2.39776382,1242.3,1242.2,38.0707157]
[1673005183583,2.39776382,1242.3,1242.2,38.07072784]
[1673005183791,3.5874393,1242.5,1242.2,38.07072784]
[1673005184631,3.5874393,1242.5,1242.2,41.27852784]
[1673005186201,2.39616075,1242.3,1242.2,40.07242839]
[1673005187146,2.39616075,1242.3,1242.2,42.48153736]
[1673005187772,4.19339259,1242.3,1242.2,42.09853693]
[1673005187980,1.79723184,1242.3,1242.2,42.09853693]
[1673005188199,1.79723184,1242.3,1242.2,40.67162349]
[1673005188612,4.19339259,1242.3,1242.2,42.4804499]
[1673005188833,4.19339259,1242.3,1242.2,40.67162349]
[1673005189040,4.19339259,1242.3,1242.2,42.48045025]
[1673005189247,4.19339259,1242.3,1242.2,40.67162349]
[1673005189880,4.19339259,1242.3,1242.2,42.480451]
[1673005192186,2.39616075,1242.3,1242.2,42.480451]
[1673005193030,4.19340075,1242.3,1242.2,42.480451]
[1673005193668,4.19340075,1242.3,1242.2,42.4806647]
[1673005194086,2.39616075,1242.3,1242.2,42.4806647]
[1673005194504,2.39616075,1242.3,1242.2,40.07155573]
[1673005195035,4.19316608,1242.3,1242.2,42.4806647]
[1673005195552,4.19314303,1242.3,1242.2,42.4806647]
[1673005196296,2.39616075,1242.3,1242.2,42.4806647]
[1673005197135,4.19327336,1242.3,1242.2,42.4806647]
[1673005197347,4.19327336,1242.3,1242.2,40.67162349]
[1673005197558,4.19327336,1242.3,1242.2,42.48069865]
[1673005197762,2.39616075,1242.3,1242.2,42.48069865]
[1673005198080,2.39616075,1242.3,1242.2,40.67162349]
[1673005198281,4.19334004,1242.3,1242.2,40.67162349]
[1673005198491,2.39616075,1242.3,1242.2,42.4807921]
[1673005198917,4.19330498,1242.3,1242.2,40.67162349]
[1673005199129,2.39616075,1242.3,1242.2,42.48078115]
[1673005199755,2.39616075,1242.3,1242.2,39.27298115]
[1673005199970,2.39616075,1242.3,1242.2,40.67162349]
[1673005200391,2.39616075,1242.3,1242.2,42.48103862]
[1673005201026,2.39616075,1242.3,1242.2,40.07192965]
[1673005204175,5.39113749,1242.3,1242.2,40.07192965]
[1673005207117,2.99497674,1242.3,1242.2,40.07192965]
[1673005207539,5.39227545,1242.3,1242.2,40.07192965]
[1673005207857,2.99497674,1242.3,1242.2,40.07192965]
[1673005208064,5.3922336,1242.3,1242.2,40.07192965]
[1673005208274,2.99497674,1242.3,1242.2,41.27858589]
[1673005208479,2.99497674,1242.3,1242.2,40.07192965]
[1673005210997,5.39222356,1242.3,1242.2,40.07192965]
[1673005211218,2.99497674,1242.3,1242.2,40.07192965]
[1673005217418,2.39831092,1242.3,1242.2,42.09856985]
[1673005217626,2.39831092,1242.3,1242.2,42.09856634]
[1673005221306,2.39831092,1242.3,1242.2,45.10995329]
[1673005221521,2.39831092,1242.3,1242.2,42.09856634]
[1673005221728,2.39831092,1242.3,1242.2,45.10995329]
[1673005221941,4.19718033,1242.3,1242.2,42.70084432]
[1673005222147,1.79886941,1242.3,1242.2,42.70084432]
[1673005222358,2.99817834,1242.3,1242.2,44.60327721]
[1673005222672,1.19930893,1242.3,1242.2,41.59189026]
[1673005224570,1.19930893,1242.3,1242.2,42.70529305]
[1673005224883,1.19877849,1242.3,1242.2,42.70529305]
[1673005225405,2.39831092,1242.4,1242.2,42.70529305]
[1673005225615,2.39831092,1242.4,1242.3,9.84652865]
[1673005226039,2.39831092,1242.4,1242.3,12.25923352]
[1673005226241,5.39328766,1242.4,1242.3,9.84652865]
[1673005227081,2.39831092,1242.4,1242.3,12.25923352]
[1673005230867,2.39831092,1242.4,1242.3,13.65750487]
[1673005231073,2.39831092,1242.4,1242.3,15.08431353]
[1673005232127,5.39328766,1242.5,1242.3,15.08431353]
[1673005232330,5.39328766,1242.5,1242.4,3.01495547]
[1673005232546,5.39328766,1242.5,1242.4,9.84597328]
[1673005232750,2.39831092,1242.5,1242.4,12.25867815]
[1673005233702,2.39831092,1242.5,1242.4,9.84597328]
[1673005238428,2.39831092,1242.5,1242.4,11.05113113]
[1673005238853,2.39831092,1242.5,1242.4,9.84597328]
[1673005239059,2.39831092,1242.5,1242.4,11.8763411]
[1673005239060,1.19769473,1242.5,1242.4,11.8763411]
[1673005240739,1.19769473,1242.5,1242.4,11.87633411]
[1673005241159,1.19769473,1242.5,1242.4,12.25657168]
[1673005242002,1.19769473,1242.5,1242.4,10.44970487]
[1673005242424,1.19769473,1242.5,1242.4,12.2562941]
[1673005242736,1.19769473,1242.5,1242.4,9.84358923]
[1673005244728,1.19769473,1242.5,1242.4,13.05138923]
[1673005246618,5.39328766,1242.6,1242.4,12.4491237]
[1673005246836,2.39831092,1242.5,1242.4,12.4491237]
[1673005247150,5.39328766,1242.6,1242.4,12.4491237]
[1673005247365,2.39831092,1242.5,1242.4,12.4491237]
[1673005247684,5.39328766,1242.6,1242.4,14.25571293]
[1673005248199,5.39328766,1242.6,1242.4,12.4491237]
[1673005248729,5.39328766,1242.6,1242.4,14.25571293]
[1673005248936,5.39328766,1242.6,1242.4,11.04791293]
[1673005249249,5.39328766,1242.6,1242.5,11.2448]
[1673005249462,2.99497674,1242.6,1242.5,11.2448]
[1673005250406,2.99497674,1242.6,1242.5,8.037]
[1673005251671,2.99497674,1242.6,1242.4,12.4491237]
[1673005251879,2.39456411,1242.5,1242.4,12.4491237]
[1673005252721,2.39456411,1242.5,1242.4,14.25571293]
[1673005252932,5.38954085,1242.6,1242.4,14.25571293]
[1673005253142,2.39456411,1242.6,1242.5,1.2043237]
[1673005253351,5.38954085,1242.6,1242.5,1.2043237]
[1673005254192,2.39456411,1242.6,1242.5,9.2413237]
[1673005256816,2.39456411,1242.6,1242.5,12.4491237]
[1673005257343,5.38954085,1242.6,1242.5,11.04791293]
[1673005257554,5.38954085,1242.6,1242.5,14.25571293]
[1673005258178,2.39456411,1242.6,1242.5,14.25571293]
[1673005259232,5.38954085,1242.6,1242.5,14.25571293]
[1673005261551,2.99497674,1242.6,1242.5,14.25571293]
[1673005261866,5.39191504,1242.6,1242.5,14.25571293]
[1673005262279,2.99497674,1242.6,1242.5,14.25571293]
[1673005264490,5.39181721,1242.6,1242.5,14.25571293]
[1673005264919,2.99497674,1242.6,1242.5,14.25571293]
[1673005265230,5.39181911,1242.6,1242.5,14.25571293]
[1673005265445,2.99497674,1242.6,1242.5,14.25571293]
[1673005265656,5.39193336,1242.6,1242.5,13.05138923]
[1673005265864,5.39193927,1242.6,1242.5,13.05138923]
[1673005266286,2.39696253,1242.6,1242.5,13.05138923]
[1673005266700,5.39193927,1242.6,1242.5,13.05138923]
[1673005268389,2.99497674,1242.6,1242.5,13.05138923]
[1673005268587,5.39182349,1242.6,1242.5,13.05138923]
[1673005268802,2.99497674,1242.6,1242.5,13.05138923]
[1673005269015,5.39181913,1242.6,1242.5,13.05138923]
[1673005269231,2.99497674,1242.6,1242.5,13.05138923]
[1673005270594,5.39237401,1242.6,1242.5,13.05138923]
[1673005270795,2.99497674,1242.6,1242.5,13.05138923]
[1673005271222,5.39231565,1242.6,1242.5,13.05138923]
[1673005271433,2.99497674,1242.6,1242.5,15.4640941]
[1673005271959,5.39275759,1242.6,1242.5,13.65750487]
[1673005272167,5.39275759,1242.6,1242.5,13.0547273]
[1673005272480,2.99497674,1242.6,1242.5,15.46743217]
[1673005272896,2.99497674,1242.6,1242.5,13.0547273]
[1673005273324,2.99497674,1242.6,1242.5,15.46743217]
[1673005274380,2.99497674,1242.6,1242.5,12.25963217]
[1673005274699,2.99497674,1242.6,1242.5,15.46743217]
[1673005276062,2.99497674,1242.6,1242.5,12.25963217]
[1673005276268,2.99497674,1242.6,1242.5,15.46743217]
[1673005277636,2.99497674,1242.6,1242.5,13.0547273]
[1673005278376,2.99497674,1242.6,1242.5,15.46743217]
[1673005279004,2.99497674,1242.6,1242.5,13.0547273]
[1673005280041,2.99497674,1242.6,1242.5,15.46743217]
[1673005280474,2.99497674,1242.6,1242.5,13.0547273]
[1673005281097,2.99497674,1242.6,1242.5,15.46743217]
[1673005282883,2.99497674,1242.6,1242.5,13.65750487]
[1673005283099,4.19732489,1242.6,1242.5,15.68719732]
[1673005284365,2.39843634,1242.6,1242.5,18.10059987]
[1673005284569,4.19696453,1242.6,1242.5,18.10059987]
[1673005285516,1.79852819,1242.6,1242.5,15.71031122]
[1673005286148,2.99762754,1242.6,1242.5,15.71031122]
[1673005286779,4.19696453,1242.7,1242.5,15.71031122]
[1673005287093,4.19696453,1242.7,1242.6,11.87538444]
[1673005287094,2.39843634,1242.7,1242.6,11.87538444]
[1673005287295,4.19644668,1242.7,1242.6,11.87538444]
[1673005287715,2.39843634,1242.7,1242.6,11.87538444]
[1673005288347,2.39843634,1242.7,1242.6,10.4488228]
[1673005288554,4.19607931,1242.7,1242.6,10.4488228]
[1673005288975,4.19607931,1242.7,1242.6,11.87527919]
[1673005289188,4.19607931,1242.7,1242.6,10.4488228]
[1673005289394,1.79764297,1242.7,1242.6,12.4792859]
[1673005289612,4.19607931,1242.8,1242.6,12.4792859]
[1673005289825,4.19607931,1242.8,1242.7,15.08247837]
[1673005290034,1.79764297,1242.8,1242.7,15.08247837]
[1673005290658,1.79764297,1242.8,1242.7,24.04800367]
[1673005290863,1.79764297,1242.8,1242.7,25.4743096]
[1673005291077,1.79764297,1242.8,1242.7,24.04800367]
[1673005291302,1.79764297,1242.8,1242.7,25.47431191]
[1673005291609,0.59764297,1242.8,1242.7,25.47431191]
[1673005292031,2.39843634,1242.9,1242.7,25.47431191]
[1673005292241,5.39341308,1243.0,1242.9,8.037]
[1673005292451,5.39341308,1243.0,1242.9,12.44959091]
[1673005292659,2.39843634,1243.0,1242.9,11.2448]
[1673005298127,5.39341308,1243.1,1242.9,12.44959091]
[1673005298328,2.39843634,1243.1,1242.9,11.2448]
[1673005301896,5.39341308,1243.2,1242.9,22.6801498]
[1673005302112,5.39341308,1243.2,1243.1,11.2448]
[1673005302321,2.39843634,1243.2,1243.1,11.2448]
[1673005302852,2.99497674,1243.2,1243.1,11.2448]
[1673005303065,2.99497674,1243.2,1243.0,8.037]
[1673005303267,2.39060025,1243.1,1243.0,8.037]
[1673005305374,5.38522793,1243.1,1243.0,8.037]
[1673005306203,2.39025119,1243.1,1243.0,8.037]
[1673005307472,2.39025119,1243.2,1243.0,8.037]
[1673005307687,5.38522793,1243.2,1243.1,11.2448]
[1673005308106,2.39025119,1243.2,1243.1,11.2448]
[1673005308423,5.38522793,1243.2,1243.1,11.2448]
[1673005308628,2.39025119,1243.2,1243.1,11.2448]
[1673005313060,5.38522793,1243.3,1243.1,11.2448]
[1673005313252,2.39025119,1243.3,1243.1,11.2448]
[1673005313995,2.39025119,1243.3,1243.1,21.48694079]
[1673005314935,5.38522793,1243.4,1243.1,21.48694079]
[1673005315141,5.38522793,1243.4,1243.3,11.2448]
[1673005315353,5.38537889,1243.4,1243.3,11.2448]
[1673005315675,5.38533125,1243.4,1243.3,11.2448]
[1673005315888,2.99497674,1243.4,1243.3,11.2448]
[1673005316202,3.2078,1243.5,1243.2,8.037]
[1673005316516,5.37718397,1243.3,1243.2,8.037]
[1673005317145,5.37750982,1243.3,1243.2,8.037]
[1673005317978,2.98732443,1243.4,1243.2,8.037]
[1673005318301,2.39017722,1243.3,1243.2,8.037]
[1673005318506,5.37750165,1243.3,1243.2,8.037]
[1673005319035,2.98732443,1243.3,1243.2,8.037]
[1673005319353,5.37816591,1243.3,1243.2,8.037]
[1673005319569,2.98732443,1243.3,1243.2,8.037]
[1673005319879,5.37815667,1243.3,1243.2,8.037]
[1673005320294,2.39083224,1243.3,1243.2,8.037]
[1673005321667,2.98732443,1243.3,1243.2,8.037]
[1673005322820,5.37995102,1243.3,1243.2,8.037]
[1673005323449,2.98732443,1243.3,1243.2,8.037]
[1673005323872,2.39323811,1243.3,1243.2,8.037]
[1673005324811,5.38056254,1243.3,1243.2,8.037]
[1673005325134,5.38150314,1243.3,1243.2,8.037]
[1673005325334,2.98732443,1243.3,1243.2,8.037]
[1673005327659,2.39484968,1243.3,1243.2,9.24179091]
[1673005327869,2.39484968,1243.3,1243.2,8.037]
[1673005328391,2.39484968,1243.3,1243.2,9.24179091]
[1673005328602,2.98732443,1243.3,1243.2,8.037]
[1673005329234,5.38322947,1243.3,1243.2,9.24179091]
[1673005329552,5.38322947,1243.3,1243.2,8.037]
[1673005330286,2.98732443,1243.3,1243.2,8.037]
[1673005330705,5.38319879,1243.3,1243.2,8.037]
[1673005332912,2.39587436,1243.3,1243.2,8.037]
[1673005334792,2.39587436,1243.3,1243.1,4.41259091]
[1673005335012,2.99522341,1243.2,1243.1,12.44959091]
[1673005336065,5.39157839,1243.2,1243.1,12.44959091]
[1673005337744,2.39635498,1243.2,1243.1,14.25677648]
[1673005338696,2.39635498,1243.2,1243.1,14.25676002]
[1673005339005,2.39635498,1243.2,1243.1,13.05198557]
[1673005339217,2.39635498,1243.2,1243.1,14.25673906]
[1673005339633,2.39635498,1243.2,1243.1,13.05198557]
[1673005341846,2.39635498,1243.2,1243.1,9.84418557]
[1673005342153,2.39635498,1243.2,1243.1,13.05198557]
[1673005344579,2.39635498,1243.2,1243.1,15.46321372]
[1673005345836,2.39635498,1243.2,1243.1,13.05198557]
[1673005346579,2.39635498,1243.2,1243.1,15.08193089]
[1673005346789,2.39635498,1243.2,1243.1,15.08193034]
[1673005346997,2.39635498,1243.2,1243.1,13.65602815]
[1673005347419,2.39635498,1243.2,1243.1,15.46419683]
[1673005347835,2.39635498,1243.2,1243.1,12.25639683]
[1673005348049,2.39635498,1243.2,1243.1,13.65602815]
[1673005348360,2.39635498,1243.2,1243.1,24.21955691]
[1673005348575,2.39635498,1243.2,1243.1,26.02803479]
[1673005348773,2.39635498,1243.2,1243.1,24.21955691]
[1673005349203,2.39635498,1243.2,1243.1,25.64547112]
[1673005349411,2.39635498,1243.2,1243.1,25.64547119]
[1673005349624,2.39635498,1243.2,1243.1,25.64546769]
[1673005350570,2.39635498,1243.2,1243.1,26.02800242]
[1673005350778,5.39157839,1243.2,1243.1,26.02800242]
[1673005350993,2.39635498,1243.2,1243.1,24.21955691]
[1673005351192,6.58745275,1243.3,1243.1,26.2499968]
[1673005351402,3.59222934,1243.3,1243.2,10.44842811]
[1673005351827,4.19508683,1243.3,1243.2,14.89002777]
[1673005352038,4.19508683,1243.3,1243.2,11.87419209]
[1673005352244,2.39587436,1243.3,1243.2,10.44842811]
[1673005352671,2.39587436,1243.3,1243.2,11.87422679]
[1673005352886,4.195161,1243.3,1243.2,11.87422679]
[1673005354037,4.195161,1243.3,1243.2,10.44842811]
[1673005354247,2.39587436,1243.3,1243.2,10.44842811]
[1673005354456,2.39587436,1243.3,1243.2,9.84468823]
[1673005355401,2.39587436,1243.3,1243.2,12.25611634]
[1673005356249,4.19442972,1243.3,1243.2,10.44842811]